bitfinex/quotes_ETHUSD_20250711
["timestamp","ask_amount","ask_price","bid_price","bid_amount"]
[1752225057567,12.85777393,3002.3,3002.2,36.296093]
[1752225057762,12.85777393,3002.3,3002.2,35.250289]
[1752225058697,13.96777393,3002.3,3002.2,45.040908]
[1752225058901,13.96777393,3002.3,3002.2,41.060036]
[1752225059274,13.96777393,3002.3,3002.2,35.980036]
[1752225059478,13.96777393,3002.3,3002.2,41.059036]
[1752225059675,13.96777393,3002.3,3002.2,54.347691]
[1752225059897,13.96777393,3002.3,3002.2,54.78528645]
[1752225060098,13.96777393,3002.3,3002.2,49.94863345]
[1752225060309,13.96777393,3002.3,3002.2,47.19863345]
[1752225060800,13.96777393,3002.3,3002.2,51.90163345]
[1752225061002,15.07777393,3002.3,3002.2,52.06803345]
[1752225061712,15.07777393,3002.3,3002.2,57.81099545]
[1752225062197,15.07777393,3002.3,3002.2,44.52816645]
[1752225062373,15.07777393,3002.3,3002.2,37.72160545]
[1752225062567,15.07777393,3002.3,3002.2,37.46436445]
[1752225062768,15.07777393,3002.3,3002.2,36.74525345]
[1752225063597,16.18777393,3002.3,3002.2,36.74525345]
[1752225063904,16.21047393,3002.3,3002.2,58.15671081]
[1752225064082,16.21047393,3002.3,3002.2,32.76395745]
[1752225064279,16.21047393,3002.3,3002.2,34.04658945]
[1752225064605,17.94252132,3002.3,3002.2,22.2944]
[1752225064779,17.94252132,3002.3,3002.2,9.6914]
[1752225065095,17.94252132,3002.3,3002.2,17.6704]
[1752225065311,17.94252132,3002.3,3002.2,13.2244]
[1752225065618,16.21047393,3002.3,3002.2,42.431453]
[1752225065918,16.21047393,3002.3,3002.2,36.01550145]
[1752225065919,17.32047393,3002.3,3002.2,36.01550145]
[1752225066115,17.32047393,3002.3,3002.2,35.01799545]
[1752225066685,17.32047393,3002.3,3002.2,37.93684745]
[1752225066887,17.32047393,3002.3,3002.2,42.43684745]
[1752225067383,19.0920513,3002.3,3002.2,18.1454]
[1752225067721,19.0920513,3002.3,3002.2,23.2254]
[1752225067916,19.0920513,3002.3,3002.2,18.1454]
[1752225068115,19.0920513,3002.3,3002.2,23.2274]
[1752225068321,20.2020513,3002.3,3002.2,23.2274]
[1752225069042,20.2020513,3002.3,3002.2,18.1454]
[1752225069326,20.2020513,3002.3,3002.2,23.061]
[1752225070410,20.2020513,3002.3,3002.2,17.979]
[1752225070611,18.5855513,3002.3,3001.9,0.1664]
[1752225070789,6.02160513,3002.2,3002.0,5.082]
[1752225071125,1.5636,3002.1,3001.6,0.1664]
[1752225071422,1.5636,3001.9,3001.6,0.1664]
[1752225071720,1.5636,3001.9,3001.7,0.43759545]
[1752225071887,1.5636,3001.9,3001.8,0.1664]
[1752225072083,1.5636,3001.9,3001.8,15.68999545]
[1752225072483,2.0268,3001.9,3001.8,15.68999545]
[1752225073336,3.1368,3001.9,3001.8,15.68999545]
[1752225073838,1.11,3001.9,3001.8,20.70497945]
[1752225074045,1.11,3001.9,3001.8,35.83104545]
[1752225074239,1.11,3001.9,3001.8,33.25573845]
[1752225074423,1.11,3001.9,3001.8,32.26608645]
[1752225074827,1.11,3001.9,3001.8,26.13759945]
[1752225075025,1.5732,3001.9,3001.8,15.64225845]
[1752225075227,1.5732,3001.9,3001.8,20.73225845]
[1752225075626,1.11,3001.9,3001.8,21.18145845]
[1752225075935,2.22,3001.9,3001.8,36.25225381]
[1752225076144,2.22,3001.9,3001.8,30.93476945]
[1752225076303,2.22,3001.9,3001.8,28.46696945]
[1752225076507,2.22,3001.9,3001.8,22.37696945]
[1752225076817,2.22,3001.9,3001.8,27.46796945]
[1752225077023,2.22,3001.9,3001.8,28.94198045]
[1752225077331,2.22,3001.9,3001.8,36.92298045]
[1752225077636,2.22,3001.9,3001.8,32.94196345]
[1752225077937,3.8808,3001.9,3001.8,22.50181945]
[1752225078136,5.454,3001.9,3001.8,18.1474]
[1752225078440,5.454,3001.9,3001.8,23.2364]
[1752225078637,5.454,3001.9,3001.8,13.2364]
[1752225078939,5.9994,3001.9,3001.8,23.2364]
[1752225079329,5.9994,3001.9,3001.8,8.1474]
[1752225079706,5.9994,3001.9,3001.8,23.2384]
[1752225079909,5.9994,3001.9,3001.8,13.2384]
[1752225080210,5.9994,3001.9,3001.8,23.074]
[1752225080420,7.1094,3001.9,3001.8,13.074]
[1752225080621,7.1094,3001.9,3001.8,23.074]
[1752225080842,7.1094,3001.9,3001.8,13.074]
[1752225081136,7.1094,3001.9,3001.8,23.074]
[1752225082752,7.1094,3001.9,3001.8,17.981]
[1752225082927,8.2194,3001.9,3001.8,23.074]
[1752225083536,8.3858,3001.9,3001.8,23.074]
[1752225083846,8.3858,3001.9,3001.8,23.072]
[1752225085451,9.4958,3001.9,3001.8,23.072]
[1752225087432,9.4958,3001.9,3001.8,23.53670201]
[1752225087842,10.6058,3001.9,3001.8,23.53670201]
[1752225088156,10.4394,3001.9,3001.8,23.53670201]
[1752225088452,10.4313,3001.9,3001.8,23.70310201]
[1752225090159,10.4313,3001.9,3001.8,23.072]
[1752225090329,11.5413,3001.9,3001.8,23.072]
[1752225092455,11.5413,3001.9,3001.8,23.071]
[1752225092658,12.6513,3001.9,3001.8,23.071]
[1752225092958,12.6513,3001.9,3001.8,17.981]
[1752225093434,12.6513,3001.9,3001.8,23.07]
[1752225095133,13.7613,3001.9,3001.8,23.07]
[1752225095830,13.7613,3001.9,3001.8,23.53470201]
[1752225096732,13.7613,3001.9,3001.8,23.70110201]
[1752225096953,12.7608,3001.9,3001.8,23.70110201]
[1752225097128,13.2159,3001.9,3001.8,23.70110201]
[1752225097666,14.3259,3001.9,3001.8,23.70110201]
[1752225098656,12.21,3001.9,3001.8,23.70110201]
[1752225099331,12.21,3001.9,3001.8,18.61210201]
[1752225099332,14.2637,3001.9,3001.8,18.61210201]
[1752225099532,15.69007,3001.9,3001.8,13.075]
[1752225099968,16.80007,3001.9,3001.8,13.075]
[1752225101266,16.80007,3001.9,3001.8,7.983]
[1752225101467,16.80007,3001.9,3001.8,23.074]
[1752225101647,16.80007,3001.9,3001.8,17.983]
[1752225101967,16.80007,3001.9,3001.8,23.074]
[1752225102171,16.80007,3001.9,3001.8,23.073]
[1752225102359,17.91007,3001.9,3001.8,23.073]
[1752225102669,17.91007,3001.9,3001.8,17.983]
[1752225102977,17.91007,3001.9,3001.8,23.074]
[1752225104843,19.02007,3001.9,3001.8,7.983]
[1752225105257,19.02007,3001.9,3001.8,13.072]
[1752225105468,19.62507,3001.9,3001.8,7.983]
[1752225105670,1.6536,3001.7,3000.7,10.0]
[1752225105876,1.6536,3001.7,3001.1,10.0]
[1752225106032,1.86447,3001.6,3001.3,10.0]
[1752225106365,2.1087,3001.5,3001.4,15.089]
[1752225107147,3.2187,3001.5,3001.4,15.089]
[1752225107571,3.2187,3001.5,3001.4,5.089]
[1752225107765,3.1393,3001.5,3001.4,5.09]
[1752225107934,1.5742,3001.4,3001.1,10.0]
[1752225108136,2.0293,3001.3,3001.2,15.088]
[1752225109581,3.1393,3001.3,3001.2,15.088]
[1752225111851,4.2493,3001.3,3001.2,15.088]
[1752225112051,4.2493,3001.3,3001.2,10.0]
[1752225112366,4.8187317,3001.3,3001.2,15.087]
[1752225113089,4.8187317,3001.3,3001.2,15.086]
[1752225113292,4.4157,3001.3,3001.2,15.086]
[1752225113672,4.4157,3001.3,3001.2,15.085]
[1752225114268,5.5257,3001.3,3001.2,15.085]
[1752225116563,6.6357,3001.3,3001.2,15.085]
[1752225116778,6.6357,3001.3,3001.2,10.0]
[1752225116965,7.4437717,3001.3,3001.2,15.084]
[1752225118693,6.9886717,3001.3,3001.2,15.084]
[1752225118868,8.5410717,3001.3,3001.2,15.084]
[1752225121356,9.6510717,3001.3,3001.2,15.084]
[1752225122896,6.66,3001.3,3001.2,15.084]
[1752225123095,6.66,3001.3,3001.2,15.5313]
[1752225123988,7.77,3001.3,3001.2,15.5313]
[1752225126200,7.77,3001.3,3001.2,15.084]
[1752225126373,8.88,3001.3,3001.2,15.084]
[1752225126576,8.88,3001.3,3001.2,15.5313]
[1752225126971,8.88,3001.3,3001.2,15.084]
[1752225128995,8.88,3001.3,3001.2,15.5313]
[1752225129163,9.99,3001.3,3001.2,15.5313]
[1752225131965,11.1,3001.3,3001.2,24.790182]
[1752225132170,11.1,3001.3,3001.2,24.632482]
[1752225132371,11.1,3001.3,3001.2,22.783487]
[1752225132799,11.1,3001.3,3001.2,23.20275936]
[1752225133096,11.1,3001.3,3001.2,32.50466936]
[1752225134000,11.1,3001.3,3001.2,37.34074936]
[1752225134194,11.1,3001.3,3001.2,19.7567]
[1752225134497,12.21,3001.3,3001.2,19.9957]
[1752225136083,12.21,3001.3,3001.2,21.526791]
[1752225136903,13.32,3001.3,3001.2,21.526791]
[1752225137096,13.32,3001.3,3001.2,26.854791]
[1752225137772,13.32,3001.3,3001.2,28.587135]
[1752225137972,13.32,3001.3,3001.2,27.197135]
[1752225138472,13.32,3001.3,3001.2,24.428714]
[1752225138868,13.32,3001.3,3001.2,14.408345]
[1752225139146,13.32,3001.3,3001.2,11.6896]
[1752225139272,14.43,3001.3,3001.2,18.915991]
[1752225140012,14.43,3001.3,3001.2,16.7726]
[1752225140301,14.43,3001.3,3001.2,16.7716]
[1752225141213,14.43,3001.3,3001.2,23.442986]
[1752225141420,14.43,3001.3,3001.2,19.395081]
[1752225141602,14.43,3001.3,3001.2,16.7716]
[1752225141924,15.54,3001.3,3001.2,11.6896]
[1752225142077,15.54,3001.3,3001.2,16.7716]
[1752225142477,15.54,3001.3,3001.2,11.6896]
[1752225142711,15.54,3001.3,3001.2,16.938]
[1752225143283,15.54,3001.3,3001.2,38.76249257]
[1752225143523,15.54,3001.3,3001.2,37.62452857]
[1752225143725,15.54,3001.3,3001.2,37.09492957]
[1752225144215,15.54,3001.3,3001.2,36.80869057]
[1752225144419,16.65,3001.3,3001.2,37.82869057]
[1752225145221,16.65,3001.3,3001.2,40.37469057]
[1752225145391,16.65,3001.3,3001.2,37.98026157]
[1752225145592,16.65,3001.3,3001.2,33.82248921]
[1752225145794,16.65,3001.3,3001.2,17.885694]
[1752225146001,16.65,3001.3,3001.2,20.962081]
[1752225146519,16.65,3001.3,3001.2,12.359081]
[1752225146818,16.65,3001.3,3001.2,20.962081]
[1752225147032,17.76,3001.3,3001.2,15.5293]
[1752225147212,17.76,3001.3,3001.2,21.1923]
[1752225147386,17.76,3001.3,3001.2,10.0]
[1752225147579,17.76,3001.3,3001.1,0.002]
[1752225147799,17.76,3001.3,3001.2,10.0]
[1752225147979,17.76,3001.3,3001.2,15.082]
[1752225148906,17.76,3001.3,3001.2,10.0]
[1752225149621,18.87,3001.3,3001.2,15.082]
[1752225150086,21.51504,3001.3,3001.2,10.0]
[1752225150424,21.51504,3001.3,3001.2,15.082]
[1752225151084,21.51504,3001.3,3001.2,5.082]
[1752225152237,1.6534,3001.2,3001.1,0.002]
[1752225152400,4.255504,3001.2,3001.1,0.002]
[1752225152721,4.255504,3001.2,3001.1,15.084]
[1752225153219,4.255504,3001.2,3001.1,5.084]
[1752225153527,3.971304,3001.2,3001.1,15.50163021]
[1752225153730,2.151504,3001.2,3001.1,15.50163021]
[1752225154270,2.602104,3001.2,3001.1,15.2504]
[1752225154629,3.712104,3001.2,3001.1,15.2504]
[1752225154855,3.261504,3001.2,3001.1,15.2504]
[1752225155241,3.712104,3001.2,3001.1,15.2504]
[1752225155668,3.712104,3001.2,3001.1,15.084]
[1752225155969,5.260004,3001.2,3001.1,0.002]
[1752225156150,5.260004,3001.2,3001.1,5.084]
[1752225156465,5.260004,3001.2,3001.1,15.084]
[1752225156943,6.370004,3001.2,3001.1,15.084]
[1752225159773,7.480004,3001.2,3001.1,15.084]
[1752225160427,7.480004,3001.2,3001.1,10.002]
[1752225160633,8.030004,3001.2,3001.1,13.72979687]
[1752225160871,15.07746512,3001.2,3001.1,5.083]
[1752225161228,13.52956512,3001.2,3001.1,7.984]
[1752225161623,0.55,3001.0,3000.9,7.986]
[1752225161856,3.53769651,3001.0,3000.9,7.986]
[1752225162155,5.09829651,3001.0,3000.9,7.986]
[1752225162523,5.09829651,3001.0,3000.9,13.069]
[1752225163831,4.54829651,3001.0,3000.9,23.069]
[1752225164474,5.65829651,3001.0,3000.9,23.069]
[1752225165132,6.20829651,3001.0,3000.9,23.069]
[1752225167063,7.31829651,3001.0,3000.9,13.069]
[1752225169662,8.42829651,3001.0,3000.9,13.069]
[1752225170776,7.87829651,3001.0,3000.9,13.069]
[1752225171081,5.86459651,3001.0,3000.9,23.069]
[1752225171289,4.44,3001.0,3000.9,23.93133021]
[1752225171637,4.44,3001.0,3000.9,23.48663021]
[1752225171837,4.44,3001.0,3000.9,23.93133021]
[1752225172075,5.55,3001.0,3000.9,24.09773021]
[1752225174583,6.66,3001.0,3000.9,24.09773021]
[1752225177204,6.66,3001.0,3000.9,23.65303021]
[1752225177394,7.77,3001.0,3000.9,24.10013021]
[1752225180019,8.88,3001.0,3000.9,24.10013021]
[1752225181917,8.88,3001.0,3000.9,23.6825]
[1752225182526,9.99,3001.0,3000.9,23.6825]
[1752225184610,11.7614,3001.0,3000.9,23.068]
[1752225184811,14.4713,3001.0,3000.9,23.068]
[1752225185033,14.4713,3001.0,3000.9,17.986]
[1752225185325,14.4713,3001.0,3000.9,23.068]
[1752225186004,15.0213,3001.0,3000.9,7.985]
[1752225186319,15.0213,3001.0,3000.9,13.067]
[1752225187234,14.4713,3001.0,3000.9,13.067]
[1752225187532,15.5813,3001.0,3000.9,13.067]
[1752225189759,15.142,3001.0,3000.9,13.067]
[1752225190059,16.6913,3001.0,3000.9,23.067]
[1752225190742,16.252,3001.0,3000.9,23.067]
[1752225190930,14.6521,3001.0,3000.9,23.067]
[1752225191632,14.6521,3001.0,3000.9,23.5141]
[1752225191841,13.32,3001.0,3000.9,23.067]
[1752225192049,13.32,3001.0,3000.9,23.5141]
[1752225192248,14.43,3001.0,3000.9,23.5141]
[1752225192417,14.43,3001.0,3000.9,23.93173021]
[1752225192622,14.43,3001.0,3000.9,24.09813021]
[1752225193377,14.43,3001.0,3000.9,23.65103021]
[1752225193558,14.43,3001.0,3000.9,24.09813021]
[1752225194865,15.54,3001.0,3000.9,23.2334]
[1752225195064,17.8664,3001.0,3000.9,23.067]
[1752225195565,17.4271,3001.0,3000.9,17.985]
[1752225195866,17.4271,3001.0,3000.9,23.067]
[1752225196634,17.8664,3001.0,3000.9,23.067]
[1752225197249,18.9764,3001.0,3000.9,23.067]
[1752225197895,18.5371,3001.0,3000.9,23.067]
[1752225198056,18.5371,3001.0,3000.9,17.985]
[1752225198274,18.5371,3001.0,3000.9,23.067]
[1752225199982,19.6471,3001.0,3000.9,23.067]
[1752225201061,19.6471,3001.0,3000.9,23.066]
[1752225201468,19.6481,3001.0,3000.9,23.066]
[1752225202369,20.7581,3001.0,3000.9,23.066]
[1752225202683,20.7581,3001.0,3000.9,17.985]
[1752225202854,20.7581,3001.0,3000.9,23.066]
[1752225203050,21.1974,3001.0,3000.9,23.066]
[1752225203253,21.1974,3001.0,3000.9,17.985]
[1752225203570,21.1974,3001.0,3000.5,0.002]
[1752225203571,30.43305947,3001.0,3000.5,0.002]
[1752225203774,29.99375947,3001.0,3000.9,7.985]
[1752225204286,1.7662,3000.9,3000.8,7.985]
[1752225204493,2.0657,3000.9,3000.8,13.066]
[1752225204865,3.1757,3000.9,3000.8,13.066]
[1752225207407,4.2857,3000.9,3000.8,13.066]
[1752225207569,6.79018,3000.9,3000.8,13.066]
[1752225208097,6.79018,3000.9,3000.8,7.985]
[1752225208290,6.79018,3000.9,3000.8,13.066]
[1752225209172,6.32428,3000.9,3000.8,13.066]
[1752225209802,7.90018,3000.9,3000.8,13.066]
[1752225211699,3.33,3000.9,3000.8,15.21767809]
[1752225212299,4.44,3000.9,3000.8,15.21767809]
[1752225212868,4.44,3000.9,3000.8,25.21767809]
[1752225214503,5.55,3000.9,3000.8,33.27271609]
[1752225214868,5.55,3000.9,3000.8,31.65924709]
[1752225215071,5.55,3000.9,3000.8,31.15991809]
[1752225215288,5.55,3000.9,3000.8,43.35310509]
[1752225215506,5.55,3000.9,3000.8,39.18335909]
[1752225215707,5.55,3000.9,3000.8,38.55508209]
[1752225216385,5.55,3000.9,3000.8,32.42569209]
[1752225217109,6.66,3000.9,3000.8,29.75759709]
[1752225217404,6.66,3000.9,3000.8,30.60826109]
[1752225217805,6.66,3000.9,3000.8,31.02753345]
[1752225218104,6.66,3000.9,3000.8,25.94653345]
[1752225218306,6.66,3000.9,3000.8,46.95846545]
[1752225218509,6.66,3000.9,3000.8,50.64150545]
[1752225219010,6.66,3000.9,3000.8,47.39122745]
[1752225219380,7.77,3000.9,3000.8,55.63595045]
[1752225221501,7.77,3000.9,3000.8,63.77905062]
[1752225221707,7.77,3000.9,3000.8,65.77505062]
[1752225221911,8.88,3000.9,3000.8,65.77505062]
[1752225222314,8.88,3000.9,3000.8,35.77505062]
[1752225222518,8.88,3000.9,3000.8,65.77505062]
[1752225222719,8.88,3000.9,3000.8,58.18195045]
[1752225222920,5.55227789,3000.9,3000.8,67.72891107]
[1752225223832,18.871,3001.0,3000.9,10.55]
[1752225224014,18.871,3001.0,3000.9,45.56357809]
[1752225224315,16.65338861,3001.0,3000.9,46.02667809]
[1752225224535,16.65338861,3001.0,3000.9,48.44195045]
[1752225225109,16.65338861,3001.0,3000.9,36.64982536]
[1752225225315,16.65338861,3001.0,3000.9,40.29194167]
[1752225225500,16.65338861,3001.0,3000.9,29.43246867]
[1752225225820,18.65182747,3001.0,3000.9,7.63544267]
[1752225226021,18.65182747,3001.0,3000.9,22.71444267]
[1752225226198,16.65338861,3001.0,3000.9,28.24568667]
[1752225226400,16.65338861,3001.0,3000.9,25.5157]
[1752225226608,17.76338861,3001.0,3000.9,25.5157]
[1752225226993,17.76338861,3001.0,3000.9,23.61642]
[1752225227215,17.76338861,3001.0,3000.9,23.280196]
[1752225227525,17.76338861,3001.0,3000.9,19.937851]
[1752225227708,17.76338861,3001.0,3000.9,23.726851]
[1752225228291,17.76338861,3001.0,3000.9,24.969151]
[1752225228493,17.76338861,3001.0,3000.9,29.20323509]
[1752225228919,17.76338861,3001.0,3000.9,29.36963509]
[1752225229112,18.87338861,3001.0,3000.9,29.36963509]
[1752225229410,18.87338861,3001.0,3000.9,35.97782209]
[1752225230016,18.87338861,3001.0,3000.9,35.15436109]
[1752225230333,18.87338861,3001.0,3000.9,34.56636109]
[1752225230538,18.87338861,3001.0,3000.9,35.05876709]
[1752225231339,18.87338861,3001.0,3000.9,32.88189909]
[1752225231507,19.98338861,3001.0,3000.9,33.77530709]
[1752225231708,19.98338861,3001.0,3000.9,33.23578809]
[1752225231952,19.98338861,3001.0,3000.9,32.78851]
[1752225232234,19.98338861,3001.0,3000.9,18.427637]
[1752225232420,19.98338861,3001.0,3000.9,15.2444]
[1752225232625,22.08308861,3001.0,3000.9,15.2444]
[1752225232828,22.08308861,3001.0,3000.9,10.1664]
[1752225233135,22.08308861,3001.0,3000.9,15.2444]
[1752225233638,22.08308861,3001.0,3000.9,10.1664]
[1752225233839,22.08308861,3001.0,3000.9,15.2444]
[1752225234134,23.19308861,3001.0,3000.9,10.1664]
[1752225234334,23.19308861,3001.0,3000.9,15.2444]
[1752225234749,23.19308861,3001.0,3000.9,10.1664]
[1752225234953,22.72718861,3001.0,3000.9,10.1664]
[1752225235139,21.09338861,3001.0,3000.9,18.21362409]
[1752225235660,21.09338861,3001.0,3000.9,19.89372409]
[1752225236442,22.20338861,3001.0,3000.9,19.89372409]
[1752225237356,22.20338861,3001.0,3000.9,45.35393509]
[1752225237557,22.20338861,3001.0,3000.9,37.43905409]
[1752225237855,22.20338861,3001.0,3000.9,36.60736009]
[1752225238226,22.20338861,3001.0,3000.9,40.96392209]
[1752225238426,22.20338861,3001.0,3000.9,40.72399709]
[1752225238626,22.20338861,3001.0,3000.9,40.48407209]
[1752225238827,23.31338861,3001.0,3000.9,40.48407209]
[1752225239228,23.31338861,3001.0,3000.9,47.37077809]
[1752225240662,23.31338861,3001.0,3000.9,40.19366309]
[1752225240956,23.31338861,3001.0,3000.9,29.86425309]
[1752225241255,23.31338861,3001.0,3000.9,35.99328109]
[1752225241454,24.42338861,3001.0,3000.9,34.39401209]
[1752225241657,24.42338861,3001.0,3000.9,29.30180009]
[1752225242060,24.42338861,3001.0,3000.9,26.138035]
[1752225242266,24.42338861,3001.0,3000.9,28.287935]
[1752225242475,24.42338861,3001.0,3000.9,32.108935]
[1752225243481,24.42338861,3001.0,3000.9,32.293379]
[1752225243779,24.42338861,3001.0,3000.9,27.215379]
[1752225243975,25.53338861,3001.0,3000.9,31.036379]
[1752225244177,25.53338861,3001.0,3000.9,25.958379]
[1752225244354,28.09255267,3001.0,3000.9,25.486371]
[1752225244750,25.98858861,3001.0,3000.9,25.488371]
[1752225244983,25.53338861,3001.0,3000.9,25.488371]
[1752225246346,26.64338861,3001.0,3000.9,25.488371]
[1752225248861,27.75338861,3001.0,3000.9,25.488371]
[1752225249271,27.75338861,3001.0,3000.9,25.93464909]
[1752225249454,27.75338861,3001.0,3000.9,20.85664909]
[1752225249787,27.75338861,3001.0,3000.9,25.93464909]
[1752225250878,27.75338861,3001.0,3000.9,15.69267809]
[1752225251081,27.75338861,3001.0,3000.9,29.61664409]
[1752225251391,29.31858861,3001.0,3000.9,20.65470109]
[1752225251600,30.92018861,3001.0,3000.9,25.286423]
[1752225251912,33.53808702,3001.0,3000.9,5.08]
[1752225252052,33.53808702,3001.0,3000.9,0.002]
[1752225252252,33.53808702,3001.0,3000.9,5.08]
[1752225252453,33.53808702,3001.0,3000.9,0.002]
[1752225252686,33.53808702,3001.0,3000.9,5.08]
[1752225252889,33.53808702,3001.0,3000.9,15.08]
[1752225253071,33.53808702,3001.0,3000.9,10.002]
[1752225253272,33.53808702,3001.0,3000.9,15.08]
[1752225253661,34.64808702,3001.0,3000.9,15.08]
[1752225253862,34.64808702,3001.0,3000.9,10.002]
[1752225254078,34.64808702,3001.0,3000.9,15.08]
[1752225254557,34.81448702,3001.0,3000.9,15.08]
[1752225254959,34.81448702,3001.0,3000.9,15.52627809]
[1752225255681,34.81448702,3001.0,3000.9,15.08]
[1752225256075,35.92448702,3001.0,3000.9,15.08]
[1752225256891,32.68498861,3001.0,3000.9,15.08]
[1752225257097,31.08338861,3001.0,3000.9,18.58482409]
[1752225257292,31.08338861,3001.0,3000.9,18.14702409]
[1752225258166,31.08338861,3001.0,3000.9,18.58482409]
[1752225258560,32.19338861,3001.0,3000.9,18.58482409]
[1752225259583,32.19338861,3001.0,3000.9,18.14702409]
[1752225260100,32.19338861,3001.0,3000.9,18.58482409]
[1752225261011,33.30338861,3001.0,3000.9,18.58482409]
[1752225263403,34.41338861,3001.0,3000.9,18.58482409]
[1752225265700,35.52338861,3001.0,3000.9,18.58482409]
[1752225268179,36.63338861,3001.0,3000.9,18.58482409]
[1752225269807,36.63338861,3001.0,3000.9,26.32259009]
[1752225270705,37.74338861,3001.0,3000.9,26.32259009]
[1752225270900,37.74338861,3001.0,3000.9,25.94067109]
[1752225271377,37.74338861,3001.0,3000.9,20.84295309]
[1752225272782,37.74338861,3001.0,3000.9,21.30685309]
[1752225273199,38.85338861,3001.0,3000.9,21.30685309]
[1752225273514,38.85338861,3001.0,3000.9,20.23278909]
[1752225275705,39.96338861,3001.0,3000.9,19.76888909]
[1752225275908,39.96338861,3001.0,3000.9,44.65128909]
[1752225276106,39.96338861,3001.0,3000.9,32.28927709]
[1752225276417,39.96338861,3001.0,3000.9,31.50797109]
[1752225276605,39.96338861,3001.0,3000.9,36.08260472]
[1752225276785,39.96338861,3001.0,3000.9,39.82787708]
[1752225276985,39.96338861,3001.0,3000.9,50.81909408]
[1752225277389,39.96338861,3001.0,3000.9,49.45877508]
[1752225277588,39.96338861,3001.0,3000.9,46.12644145]
[1752225277910,39.96338861,3001.0,3000.9,49.45877508]
[1752225278109,41.07338861,3001.0,3000.9,49.45877508]
[1752225278424,41.07338861,3001.0,3000.9,49.03950272]
[1752225280128,41.07338861,3001.0,3000.9,49.03550272]
[1752225280892,42.18338861,3001.0,3000.9,49.03550272]
[1752225281195,42.18338861,3001.0,3000.9,50.98415772]
[1752225281889,42.18338861,3001.0,3000.9,23.96394309]
[1752225282094,42.18338861,3001.0,3000.9,21.636457]
[1752225282426,42.18338861,3001.0,3000.9,18.462277]
[1752225283328,43.29338861,3001.0,3000.9,21.526808]
[1752225283933,43.29338861,3001.0,3000.9,20.272808]
[1752225284430,43.29338861,3001.0,3000.9,22.780808]
[1752225285192,43.29338861,3001.0,3000.9,23.002656]
[1752225285802,44.40338861,3001.0,3000.9,23.002656]
[1752225286296,44.40338861,3001.0,3000.9,15.2444]
[1752225286497,44.40338861,3001.0,3000.9,23.002656]
[1752225287333,44.40338861,3001.0,3000.9,24.266656]
[1752225287529,44.40338861,3001.0,3000.9,22.975314]
[1752225288129,44.40338861,3001.0,3000.9,23.439214]
[1752225288312,45.51338861,3001.0,3000.9,33.85061309]
[1752225289043,45.51338861,3001.0,3000.9,41.75124672]
[1752225289332,45.51338861,3001.0,3000.9,54.05521172]
[1752225290028,45.51338861,3001.0,3000.9,51.47669172]
[1752225290847,46.62338861,3001.0,3000.9,51.47669172]
[1752225291401,46.62338861,3001.0,3000.9,53.47269172]
[1752225291630,46.62338861,3001.0,3000.9,53.58572472]
[1752225292317,46.62338861,3001.0,3000.9,53.33850172]
[1752225292640,46.62338861,3001.0,3000.9,53.39077172]
[1752225293244,46.62338861,3001.0,3000.9,53.94077172]
[1752225293419,47.73338861,3001.0,3000.9,54.36004408]
[1752225293605,47.73338861,3001.0,3000.9,47.59825045]
[1752225293810,47.73338861,3001.0,3000.9,34.850215]
[1752225294342,47.73338861,3001.0,3000.9,46.73076939]
[1752225294765,47.73338861,3001.0,3000.9,62.15186239]
[1752225295170,47.73338861,3001.0,3000.9,63.68825439]
[1752225295962,48.84338861,3001.0,3000.9,63.68825439]
[1752225296349,48.84338861,3001.0,3000.9,64.23825439]
[1752225296748,48.84338861,3001.0,3000.9,34.23825439]
[1752225296953,48.84338861,3001.0,3000.9,56.60281172]
[1752225297156,48.84338861,3001.0,3000.9,57.02208408]
[1752225297369,0.001,3001.1,3001.0,15.87822259]
[1752225297672,0.001,3001.1,3001.0,53.86481524]
[1752225297865,0.001,3001.1,3001.0,54.19761524]
[1752225298237,2.96578125,3001.2,3001.1,15.87811155]
[1752225298451,2.96578125,3001.2,3001.1,53.560162]
[1752225298648,2.96578125,3001.2,3001.1,54.3639042]
[1752225301036,4.07578125,3001.2,3001.1,54.3639042]
[1752225301437,4.07578125,3001.2,3001.1,52.72358964]
[1752225301637,4.07578125,3001.2,3001.1,47.64958964]
[1752225301869,4.07578125,3001.2,3001.1,52.72358964]
[1752225302197,4.07578125,3001.2,3001.1,53.27358964]
[1752225303591,5.18578125,3001.2,3001.1,53.692862]
[1752225304275,18.77027342,3001.3,3001.2,47.53957289]
[1752225304468,18.77027342,3001.3,3001.2,53.05985098]
[1752225304685,18.77027342,3001.3,3001.2,53.52635098]
[1752225305499,17.98077572,3001.3,3001.2,53.52635098]
[1752225305912,18.92452469,3001.3,3001.2,53.52635098]
[1752225306279,18.75827366,3001.3,3001.2,53.52635098]
[1752225306476,15.54,3001.9,3001.7,37.11974551]
[1752225306676,15.54,3001.9,3001.7,58.8200236]
[1752225306884,15.54,3001.9,3001.7,63.91324551]
[1752225307086,15.54,3001.9,3001.7,55.98324551]
[1752225307293,15.54,3001.9,3001.7,63.04124551]
[1752225307486,15.54,3001.9,3001.7,57.451]
[1752225307696,15.54,3001.9,3001.7,62.44628305]
[1752225308078,15.54,3001.9,3001.7,65.31048905]
[1752225308284,15.54,3001.9,3001.7,62.69690805]
[1752225308485,1.111,3001.8,3001.7,35.36505805]
[1752225308684,1.5452,3001.8,3001.7,29.14169905]
[1752225308885,1.5452,3001.8,3001.7,16.445491]
[1752225309090,3.41462708,3001.8,3001.7,14.791596]
[1752225309570,3.41462708,3001.8,3001.7,29.459494]
[1752225309822,3.41462708,3001.8,3001.7,24.386494]
[1752225310039,3.41462708,3001.8,3001.7,29.459494]